Workbook

Sheet 总则
A1: 工程量清单
A2: 工程名称：内乡县王店镇牧原饲料和生猪运输通道工程
A3: 清单 第100章 总则
A4: 子目号 | B4: 子目名称 | C4: 单位 | D4: 数量 | E4: 单价 | F4: 合价
A5: 101 | B5: 通则
A6: 101-1 | B6: 保险费
A7: -a | B7: 按合同条款规定，提供建筑工程一切险 | C7: 总额 | D7: 1
A8: -b | B8: 按合同条款规定，提供第三者责任险 | C8: 总额 | D8: 1
A9: 102 | B9: 工程管理
A10: 102-1 | B10: 竣工文件 | C10: 总额 | D10: 1
A11: 102-2 | B11: 施工环保费 | C11: 总额 | D11: 1
A12: 102-3 | B12: 安全生产费（1.5%） | C12: 总额 | D12: 1
A13: 103 | B13: 临时工程与设施
A14: 103-1 | B14: 临时道路修建、养护与拆除 （包括道路的养护费） | C14: 总额 | D14: 1
A15: 103-2 | B15: 临时占地 | C15: 总额 | D15: 1
A16: 103-3 | B16: 临时供电设施架设、维护与拆除 | C16: 总额 | D16: 1
A17: 103-4 | B17: 电信设施的提供、维修与拆除 | C17: 总额
A18: 103-5 | B18: 临时供水与排污设施 | C18: 总额 | D18: 1
A19: 104 | B19: 承包人驻地建设
A20: 104-1 | B20: 承包人驻地建设 | C20: 总额 | D20: 1
A21: 105 | B21: 施工标准化
A22: 105-1 | B22: 施工驻地 | C22: 总额 | D22: 1
A23: 105-2 | B23: 工地试验室 | C23: 总额 | D23: 1
A24: 105-3 | B24: 拌合站 | C24: 总额 | D24: 1
A25: 105-4 | B25: 钢筋加工场 | C25: 总额 | D25: 1
A26: 105-5 | B26: 预制场 | C26: 总额 | D26: 1
A27: 105-6 | B27: 仓储存放地 | C27: 总额 | D27: 1
A28: 105-7 | B28: 各场（厂）区、作业区连接道路及施工主便道 | C28: 总额 | D28: 1
A32: 清单 第100章合计 人民币 元

Sheet 路基工程
A1: 工程量清单
A2: 工程名称：内乡县王店镇牧原饲料和生猪运输通道工程
A3: 清单 第200章 路基
A4: 子目号 | B4: 子目名称 | C4: 单位 | D4: 数量 | E4: 单价 | F4: 合价
A5: 202 | B5: 场地清理
A6: 202-1 | B6: 清理与掘除
A7: -a | B7: 清理现场 | C7: m³ | D7: 9700
A8: 202-2 | B8: 挖除旧路面
A9: -a | B9: 水泥混凝土路面碎石化（18cm） | C9: ㎡ | D9: 17961.3
A10: 202-3 | B10: 拆除结构物
A11: -a | B11: 钢筋混凝土结构 | C11: m³ | D11: 158.8
A12: -b | B12: 砖、石及其他砌体结构 | C12: m³ | D12: 828
A13: 203 | B13: 挖方路基
A14: 203-1 | B14: 路基挖方
A15: -a | B15: 挖土方 | C15: m³ | D15: 23098.4
A16: -b | B16: 挖除淤泥 | C16: m³ | D16: 1470
A17: 204 | B17: 填方路基
A18: 204-1 | B18: 路基填筑（包括填前压实）
A19: -a | B19: 利用土方 | C19: m³ | D19: 10549.8
A20: -b | B20: 回填开山石渣（清表回填） | C20: m³ | D20: 12933
A21: -c | B21: 结构物台背回填（砂砾） | C21: m³ | D21: 6322.3
A22: -d | B22: 锥坡及台前溜坡填土 | C22: m³ | D22: /
A23: 205 | B23: 特殊路基处理
A24: 205-1 | B24: 软土地基处理
A25: -a | B25: 垫层
A26: -a-1 | B26: 砂砾垫层 | C26: m³ | D26: 1470
A27: 207 | B27: 坡面排水
A28: 207-1 | B28: 矩形盖板边沟
A29: -a | B29: M7.5浆砌片石 | C29: m³ | D29: 1856.4
A30: -b | B30: 现浇混凝土C30 | C30: m³ | D30: 417.7
A31: -c | B31: 预制安装混凝土盖板C30 | C31: m³ | D31: 278.5
A32: -d | B32: 钢筋 | C32: kg | D32: 23901.2
A33: 208 | B33: 护坡、护面墙
A34: 208-3 | B34: M...浆砌片石护坡
A35: -a | B35: 满铺浆砌片石护坡
A36: -a-1 | B36: M7.5浆砌片石护坡 | C36: m³ | D36: 268
A37: -a-2 | B37: 砂砾垫层 | C37: m³ | D37: 39
A38: 209 | B38: 挡土墙
A39: 209-1 | B39: 砌体挡土墙
A40: -a | B40: M...浆砌片（块）石 | C40: m³ | D40: /
A41: -b | B41: 砂砾垫层 | C41: m³ | D41: /
A42: 215 | B42: 河道防护
A43: 215-2 | B43: 导流设施（护岸墙、锥坡） | C43: m³ | D43: /
A44: -a | B44: M7.5浆砌片（块）石 | C44: m³ | D44: /
A45: -b | B45: 混凝土C30 | C45: m³ | D45: /
A46: -c | B46: 砂砾垫层 | C46: m³ | D46: /
A47: 清单 第200章合计 人民币 元

Sheet 路面工程
A1: 工程量清单
A2: 工程名称：内乡县王店镇牧原饲料和生猪运输通道工程
A3: 清单 第300章 路面
A4: 子目号 | B4: 子目名称 | C4: 单位 | D4: 数量 | E4: 单价 | F4: 合价
A5: 302 | B5: 垫层
A6: 302-1 | B6: 砂砾碎石垫层
A7: -a | B7: 厚180mm | C7: m² | D7: /
A8: 302-2 | B8: 砂砾垫层
A9: -a | B9: 厚400mm | C9: m³ | D9: 17755.7
A10: 304 | B10: 水泥稳定土底基层、基层
A11: 304-1 | B11: 水泥稳定碎石底基层
A12: -a | B12: 厚160mm | C12: m² | D12: 40987
A13: 304-2 | B13: 搭板埋板下水泥稳定砂砾底基层（18cm) | C13: m²
A14: 304-3 | B14: 水泥稳定碎石基层
A15: -a | B15: 厚160mm | C15: m² | D15: 40164.7
A16: 306 | B16: 级配碎（砾）石底基层、基层
A17: 306-3 | B17: 砂砾基层
A18: -a | B18: 厚200mm | C18: m² | D18: /
A19: 308 | B19: 透层和黏层
A20: 308-1 | B20: 透层 | C20: m² | D20: 38913
A21: 308-2 | B21: 黏层 | C21: m² | D21: 38220.7
A22: 309 | B22: 热拌沥青混合料面层
A23: 309-1 | B23: 细粒式沥青混凝土
A24: -a | B24: 厚30mm | C24: m² | D24: 40691.1
A25: 309-2 | B25: 中粒式沥青混凝土
A26: -a | B26: 厚40mm | C26: m² | D26: 40691.1
A27: 310 | B27: 沥青表面处置与封层
A28: 310-2 | B28: 封层 | C28: m² | D28: /
A29: 312 | B29: 水泥混凝土面板
A30: 312-1 | B30: 水泥混凝土面板
A31: -a | B31: 厚180mm | C31: m³ | D31: /
A32: 312-2 | B32: 钢筋 | C32: kg | D32: /
A33: 313 | B33: 路肩培土、中央分隔带回填土及路缘石
A34: 313-1 | B34: 培土路肩 | C34: m³ | D34: 2146.1
A35: 313-5 | B35: 混凝土预制块路缘石 | C35: m³ | D35: /
A37: 清单 第300章合计 人民币 元

Sheet 桥梁、涵洞
A1: 工程量清单
A2: 工程名称：内乡县王店镇牧原饲料和生猪运输通道工程
A3: 清单 第400章 桥梁、涵洞
A4: 子目号 | B4: 子目名称 | C4: 单位 | D4: 数量 | E4: 单价 | F4: 合价
A5: 403 | B5: 钢筋
A6: 403-1 | B6: 基础钢筋（包括灌注桩、承台等） | C6: kg | D6: =3628.6+15093.2+3781.7+15787.1 -> 38290.6
A7: 403-2 | B7: 下部结构钢筋 | C7: kg | D7: =(427.2+4953.4+2616.2+649.2)*2+3538+2223.2+133.3+835.1+2518.2 -> 26539.8
A8: 403-3 | B8: 上部结构钢筋 | C8: kg | D8: =(636+12965+977+2817.5+2397.2+1382.6+244.8)*2 -> 42840.2
A9: 403-4 | B9: 附属结构钢筋 | C9: kg | D9: =(30.6+4688.4)*2 -> 9438
A10: 404 | B10: 基坑开挖及回填
A11: 404-1 | B11: 干处挖土方 | C11: m³ | D11: =64.1+167.5+376+194 -> 801.6
A12: 404-2 | B12: 水下挖土方 | C12: m³ | D12: /
A13: 405 | B13: 钻孔灌注桩
A14: 405-1 | B14: 钻孔灌注桩（Φ1.5m） | C14: m | D14: =19*4+21*4 -> 160
A15: 410 | B15: 结构混凝土工程
A16: 410-1 | B16: 混凝土基础（包括支撑梁、桩基承台）
A17: -a | B17: C25片石混凝土 | C17: m³ | D17: =134.3+148.4+21+30.6+35+0.7+43.5+2.5 -> 416
A18: 410-2 | B18: 混凝土下部结构
A19: -a | B19: C35
A20: -a-1 | B20: 台帽 | C20: m³ | D20: =(33.4+0.8)*2+16.8+15 -> 100.2
A21: -a-2 | B21: 背墙、侧墙 | C21: m³ | D21: =17*2 -> 34
A22: -b | B22: C25片石混凝土
A23: -b-1 | B23: 台身 | C23: m³ | D23: /
A24: -b-2 | B24: 侧墙 | C24: m³ | D24: /
A25: 410-3 | B25: 现浇混凝土上部结构
A26: -a | B26: C50 | C26: m³ | D26: =2.2+3.4 -> 5.6
A27: 410-4 | B27: 预制混凝土上部结构(C40) | C27: m³ | D27: /
A28: 410-5 | B28: 上部结构现浇整体化混凝土(C50) | C28: m³ | D28: =11.3*2 -> 22.6
A29: 410-6 | B29: 现浇混凝土附属结构
A30: -a | B30: C40
A31: -a-1 | B31: 垫石 | C31: m³ | D31: =0.5*2 -> 1
A32: -b | B32: C30
A33: -b-1 | B33: 搭板 | C33: m³ | D33: =25.2*2 -> 50.4
A34: -b-2 | B34: 防撞护栏 | C34: m³ | D34: =21.6*2 -> 43.2
A35: -c | B35: C15 | C35: m³ | D35: =12.4*2+11.6 -> 36.4
A36: 410-7 | B36: 预制混凝土附属结构 | C36: m³ | D36: /
A37: 411 | B37: 预应力混凝土工程
A38: 411-3 | B38: 先张法预应力钢绞线 | C38: kg | D38: =2646.2*2 -> 5292.4
A39: 411-8 | B39: 预制预应力混凝土上部结构(C50) | C39: m³ | D39: =70.2*2 -> 140.4
A40: 413 | B40: 砌石工程
A41: 413-1 | B41: 浆砌片石 | C41: m³
A42: -a | B42: M7.5浆砌片（块）石 | C42: m³ | D42: 314.1
A43: -b | B43: 砂砾垫层 | C43: m³ | D43: 104.7
A44: 415 | B44: 桥面铺装
A45: 415-2 | B45: 水泥混凝土桥面铺装（防水C50，厚120mm） | C45: m³ | D45: =16*2 -> 32
A46: 415-3 | B46: 防水层（厚...mm） | C46: ㎡ | D46: =224*2 -> 448
A47: 415-4 | B47: 桥面排水
A48: -a | B48: 竖、横向集中排水管
A49: -a-1 | B49: Φ15PVC管 | C49: m | D49: =7.6*2 -> 15.2
A50: -b | B50: 桥面边部碎石盲沟 | C50: m³ | D50: =0.6*2 -> 1.2
A51: 416 | B51: 桥梁支座
A52: 416-2 | B52: 圆形板式橡胶支座
A53: -a | B53: GBZY 200×42mm | C53: 个 | D53: =24*2 -> 48
A54: 417 | B54: 桥梁接缝和伸缩装置
A55: 417-2 | B55: D40伸缩缝 | C55: m | D55: =16.8*2 -> 33.6
A56: 419 | B56: 圆管涵
A57: 419-1 | B57: 单孔钢筋混凝土圆管涵
A58: -a | B58: 1-Φ1.0 | C58: m | D58: 21
A59: -b | B59: 1-Φ0.5 | C59: m | D59: 66
A60: -c | B60: 边沟涵1-Φ0.5 | C60: m | D60: 103
A61: 420 | B61: 盖板涵
A62: 420-1 | B62: 钢筋混凝土盖板涵
A63: -a | B63: 1-4*3.0 | C63: m | D63: 10.5
A65: 清单 第400章合计 人民币 元

Sheet 安全设施及预埋管线
A1: 工程量清单
A2: 工程名称：内乡县王店镇牧原饲料和生猪运输通道工程
A3: 清单 第600章 安全设施及预埋管线
A4: 子目号 | B4: 子目名称 | C4: 单位 | D4: 数量 | E4: 单价 | F4: 合价
A5: 602 | B5: 护栏
A6: 602-2 | B6: 石砌护墙 | C6: m³ | D6: /
A7: 602-3 | B7: 波形梁钢护栏
A8: -a | B8: 路侧波形梁钢护栏 | C8: m | D8: 592
A9: -b | B9: 波形梁钢护栏端头 | C9: 个 | D9: /
A10: -b-1 | B10: AT1-1 | C10: 个 | D10: 32
A11: -b-2 | B11: AT2 | C11: 个 | D11: /
A12: 604 | B12: 道路交通标志
A13: 604-1 | B13: 单柱式交通标志 | C13: 个 | D13: 30
A14: 604-5 | B14: 单悬臂式交通标志 | C14: 个 | D14: 7
A15: 604-6 | B15: 双悬臂式交通标志 | C15: 个 | D15: /
A16: 604-8 | B16: 里程碑 | C16: 个 | D16: 5
A17: 604-9 | B17: 公路界碑 | C17: 个 | D17: 38
A18: 604-10 | B18: 百米桩 | C18: 个 | D18: 53
A19: 604-14 | B19: 道口标柱 | C19: 根 | D19: 176
A20: 605 | B20: 道路交通标线
A21: 605-1 | B21: 热熔型涂料路面标线 | C21: m² | D21: 426.2
A22: 605-2 | B22: 溶剂型涂料路面标线 | C22: m² | D22: /
A23: 609 | B23: 信号灯
A24: 609-1 | B24: 单柱式 | C24: 套 | D24: /
A25: 609-2 | B25: 检查井 | C25: 个 | D25: /
A26: 609-3 | B26: 信号机 | C26: 个 | D26: /
A27: 609-4 | B27: 管道
A28: -a | B28: 过路钢管 | C28: m | D28: /
A29: -b | B29: PE管 | C29: m | D29: /
A30: 610 | B30: 照明
A31: 610-1 | B31: 道路照明
A32: -a | B32: 路灯
A33: -a1 | B33: 太阳能双臂路灯杆及灯具 | C33: 套 | D33: /
A34: -b | B34: 路灯基础
A35: -b1 | B35: C20混凝土 | C35: m³ | D35: /
A36: -b2 | B36: 碎石垫层 | C36: m³ | D36: /
A37: -b3 | B37: 钢筋 | C37: kg | D37: /
A38: -b4 | B38: PVC管（Φ50） | C38: m | D38: /
A39: -c | B39: 蓄电池井 | C39: 个 | D39: /
A40: 610-2 | B40: 景观照明
A41: -a | B41: 照明配电箱 | C41: 台 | D41: /
A42: -b | B42: 灯具 | C42: 盏 | D42: /
A43: -c | B43: 电缆
A44: -c1 | B44: YJV-0.6/1kV-5×6 | C44: m | D44: /
A45: -c2 | B45: YJV-0.6/1kV-4×35 | C45: m | D45: /
A46: -d | B46: 管道
A47: -d1 | B47: 镀锌热侵钢管（Φ40） | C47: m | D47: /
A48: -d2 | B48: PE管（Φ65） | C48: m | D48: /
A49: 清单 第600章合计 人民币 元

Sheet 投标报价汇总表
A1: 投标报价汇总表
A2: 工程名称：内乡县王店镇牧原饲料和生猪运输通道工程
A3: 序号 | B3: 章次 | C3: 科目名称 | D3: 金额（元）
A4: 1 | B4: 100 | C4: 总则
A5: 2 | B5: 200 | C5: 路基
A6: 3 | B6: 300 | C6: 路面
A7: 4 | B7: 400 | C7: 桥梁、涵洞
A8: 5 | B8: 500 | C8: 隧道
A9: 6 | B9: 600 | C9: 安全设施及预埋管线
A10: 7 | B10: 700 | C10: 绿化及环境保护设施
A11: 8 | B11: 第100章～700章清单合计
A12: 9 | B12: 已包含在清单合计中的材料、工程设备、 专业工程暂估价合计
A13: 10 | B13: 清单合计减去材料、工程设备、专业工程 暂估价合计（即8-9=10）
A14: 11 | B14: 计日工合计
A15: 12 | B15: 暂列金额（不含计日工总额）(3%)
A16: 13 | B16: 投标报价（8+11+12）=13

Sheet 工程量清单单价分析表
A1: 工程量清单单价分析表
A2: 工程名称：内乡县王店镇牧原饲料和生猪运输通道工程
A3: 序号 | B3: 编号 | C3: 子目 名称 | D3: 人工费 | G3: 材料费 | M3: 机械 使用费 | N3: 其他 | O3: 管理费 | P3: 税费 | Q3: 利润 | R3: 综合 单价
D4: 工日 | E4: 单价 | F4: 金额 | G4: 主材 | K4: 辅材费 | L4: 金额
G5: 主材耗量 | H5: 单位 | I5: 单价 | J5: 主材费
